{"text_format":"1","workbook":"xlsx","n_sheets":2,"sheets":["Sheet1","svavozila"],"not_rendered":{"charts":0,"images":0,"macros":0,"external_links":0,"defined_names":4,"comments":0,"pivot_tables":0},"unopened":[],"bounds":{"document_bytes":16777216,"sheet_cells":100000,"rows_first":2000,"rows_last":500,"rows_between":2000,"halvings":0,"cell_chars":16384,"cell_head_chars":4096},"cells_cut":0,"cells_raw":0,"read":"whole","date_system":"1900"}

{"sheet":"Sheet1","index":0,"n_rows":40,"n_cols":15,"rows_kept":40,"cut":false,"hidden":false,"merged":[[0,0,0,3],[1,0,1,3]]}
["Ime i prezime radnika"]
[]
[]
["Datum","Početno vreme","Krajnje vreme","Reg. automobila","Početna kilometraža","Krajnja kilometraža","Mesto","Opis","Pređeno km","fabia doblo roomster 5/100","grande punto 7/100 benzin","yeti 7/10","džip, kombi 10/100","x 155 disel","x 157 benzin"]
["2014-02-25","20:30:00","21:15:00","BG Fabia",112550,112577,null,null,{"$f":"F5-E5","v":27},{"$f":"5/100*155*I5","v":209.25},{"$f":"7/100*157*I5","v":296.73},{"$f":"7/100*155*I5","v":292.95000000000005},{"$f":"10/100*155*I5","v":418.5}]
["2014-02-25","07:00:00","08:00:00","BG  Punto",132577,132609,null,null,{"$f":"F6-E6","v":32},{"$f":"5/100*155*I6","v":248},{"$f":"7/100*157*I6","v":351.68},{"$f":"7/100*155*I6","v":347.20000000000005},{"$f":"10/100*155*I6","v":496}]
[5,null,null,null,null,null,null,null,0,0,0,0,0]
[null,null,null,null,null,null,null,null,0,0,0,0,0]
[null,null,null,null,null,null,null,null,0,0,0,0,0]
[null,null,null,"BG Mazda",null,null,null,null,0,0,0,0,0]
[null,null,null,null,null,null,null,null,0,0,0,0,0]
[null,null,null,null,null,null,null,null,0,0,0,0,0]
[null,null,null,null,null,null,null,null,0,0,0,0,0]
[null,null,null,null,null,null,null,null,0,0,0,0,0]
[null,null,null,null,null,null,null,null,0,0,0,0,0]
[null,null,null,null,null,null,null,null,0,0,0,0,0]
[null,null,null,null,null,null,null,null,0,0,0,0,0]
[null,null,null,null,null,null,null,null,0,0,0,0,0]
[null,null,null,null,null,null,null,null,0,0,0,0,0]
[null,null,null,null,null,null,null,null,0,0,0,0,0]
[null,null,null,null,null,null,null,null,0,0,0,0,0]
[null,null,null,null,null,null,null,null,0,0,0,0,0]
[null,null,null,null,null,null,null,null,0,0,0,0,0]
[null,null,null,null,null,null,null,null,0,0,0,0,0]
[null,null,null,null,null,null,null,null,0,0,0,0,0]
[null,null,null,null,null,null,null,null,0,0,0,0,0]
[null,null,null,null,null,null,null,null,0,0,0,0,0]
[null,null,null,null,null,null,null,null,0,0,0,0,0]
[null,null,null,null,null,null,null,null,0,0,0,0,0]
[null,null,null,null,null,null,null,null,0,0,0,0,0]
[null,null,null,null,null,null,null,null,0,0,0,0,0]
[null,null,null,null,null,null,null,null,0,0,0,0,0]
[null,null,null,null,null,null,null,null,0,0,0,0,0]
[null,null,null,null,null,null,null,null,0,0,0,0,0]
[null,null,null,null,null,null,null,null,0,0,0,0,0]
[null,null,null,null,null,null,null,null,0,0,0,0,0]
[null,null,null,null,null,null,null,null,0,0,0,0,0]
[null,null,null,null,null,null,null,null,0,0,0,0,0]
[null,null,null,null,null,null,null,null,0,0,0,0,0]
["Potpis radnika:",null,null,null,null,"Potpis ovlaštenog lica:"]

{"sheet":"svavozila","index":1,"n_rows":40,"n_cols":4,"rows_kept":40,"cut":false,"hidden":false,"merged":[]}
[null,null,"BG-Fabia 000 aa","5/100 dizel"]
[null,null,"BG Roomster 122 xx","5/100 dizel"]
[null,null,"BG Roomster 112 xx","5/100 dizel"]
[null,null,"BG Roomster","5/100 dizel"]
[null,null,"BG Fabia 111 xx","5/100 dizel"]
[null,null,"BG Fabia 222yy","5/100 dizel"]
[null,null,"BG Fabia 221 bf","5/100 dizel"]
[null,null,"BG Fabia 333 xx","5/100 dizel"]
[null,null,"BG  Caddy","5/100 dizel"]
[null,null,"BG Fiat Doblo 777 xx","5/100 dizel"]
[null,null,"BG Fiat Doblo 888 xx","5/100 dizel"]
[null,null,"BG Fiat Doblo","5/100 dizel"]
[null,null,"BG Fiat Doblo","5/100 dizel"]
[null,null,"BG Fiat Doblo","5/100 dizel"]
[null,null,"BG Fiat Doblo","5/100 dizel"]
[null,null,"BG Fiat Doblo","5/100 dizel"]
[null,null,"BG Yeti 333 xx","7/100 dizel"]
[null,null,"BG  Yet i444 xx","7/100 dizel"]
[null,null,"BG Isuzu","10/100 dizel"]
[null,null,"BG L200","10/100 dizel"]
[null,null,"BG L200","10/100 dizel"]
[null,null,"BG L200","10/100 dizel"]
[null,null,"BG L200","10/100 dizel"]
[null,null,"BG Fiat Ducato","10/100 dizel"]
[null,null,"BG Mazda","10/100 dizel"]
[null,null,"BG Mazda","10/100 dizel"]
[null,null,"BG Mazda","10/100 dizel"]
[null,null,"BG Mazda","10/100 dizel"]
[null,null,"BG Mazda","10/100 dizel"]
[null,null,"BG Mazda","10/100 dizel"]
[null,null,"BG Mazda","10/100 dizel"]
[null,null,"BG  Toyota","10/100 dizel"]
[null,null,"BG Mahindra","10/100 dizel"]
[null,null,"BG  Master","10/100 dizel"]
[null,null,"BG Mercedes","10/100 dizel"]
[null,null,"BG Mercedes","10/100 dizel"]
[]
[null,null,"BG  Punto","7/100 benzin"]
[null,null,"BG  Punto","7/100 benzin"]
[null,null,"BG  Punto","7/100 benzin"]